bitfinex/quotes_ETHUSD_20220101
["timestamp","ask_amount","ask_price","bid_price","bid_amount"]
[1641058781829,1.3313881,3757.0,3756.8,0.00170527]
[1641058782329,1.33139,3757.1,3756.8,0.00170527]
[1641058782833,1.00003054,3757.0,3756.8,0.00170527]
[1641058783038,0.6656709,3756.6,3755.5,0.3]
[1641058783231,0.6656709,3756.6,3754.5,1.01235472]
[1641058783434,2.48138639,3756.9,3755.6,0.00682109]
[1641058783435,2.44952681,3756.7,3755.6,0.00682109]
[1641058783631,1.33156,3756.7,3755.6,0.00682109]
[1641058783832,2.58461287,3756.6,3755.6,0.00682109]
[1641058784034,2.58461287,3756.6,3754.6,0.01250532]
[1641058784035,1.42428276,3754.9,3754.6,0.01250532]
[1641058784234,1.42428276,3754.9,3754.3,1.13917759]
[1641058784235,1.42428276,3754.9,3754.3,0.01421059]
[1641058784434,1.42428276,3754.9,3754.4,0.01364217]
[1641058784632,1.32428276,3754.9,3753.9,0.01648429]
[1641058785060,1.3319,3756.1,3753.9,2.01648429]
[1641058785061,0.66598,3755.0,3753.9,2.01648429]
[1641058785262,0.66598,3755.0,3753.9,0.01648429]
[1641058785459,0.66598,3755.0,3753.4,2.01204529]
[1641058785460,0.66598,3755.0,3754.0,0.01591586]
[1641058785661,1.07216726,3754.4,3753.6,1.37861311]
[1641058785863,1.36135451,3755.2,3753.7,2.0]
[1641058786067,1.36135451,3755.2,3753.7,2.40353856]
[1641058786068,0.69535451,3755.2,3753.7,2.40353856]
[1641058786263,0.66587,3756.1,3753.8,0.01705271]
[1641058786467,1.34432972,3756.2,3753.9,0.32]
[1641058786662,1.34432972,3756.2,3754.0,2.0]
[1641058786663,0.69528447,3755.7,3754.0,2.0]
[1641058786965,1.15746351,3755.0,3754.3,1.31860274]
[1641058787362,1.15746351,3755.0,3754.4,0.01364217]
[1641058787967,0.6659167,3755.7,3754.4,2.01364217]
[1641058788167,3.35900157,3756.1,3754.4,2.01364217]
[1641058788168,2.02713157,3756.1,3754.4,2.01364217]
[1641058788365,2.02713157,3756.1,3754.5,0.01307374]
[1641058788366,0.69529157,3756.1,3754.5,0.01307374]
[1641058788823,0.69529157,3756.1,3754.6,0.32]
[1641058789024,0.69529157,3756.1,3755.5,1.37390278]
[1641058789229,0.69529157,3756.1,3755.6,0.32]
[1641058789424,1.33132,3757.5,3755.6,0.92]
[1641058789631,0.00108832,3756.0,3755.7,0.00625266]
[1641058789826,0.69501229,3757.1,3756.2,1.14009382]
[1641058790033,0.69501229,3757.1,3755.8,6.25156358]
[1641058790226,1.23262264,3756.5,3756.3,0.00284212]
[1641058790426,1.23262264,3756.5,3755.9,0.00511582]
[1641058790825,1.23262264,3756.5,3755.7,0.32]
[1641058790826,1.23262264,3756.5,3755.8,0.00568424]
[1641058791027,1.23262264,3756.5,3755.8,1.71108712]
[1641058791228,1.23262264,3756.5,3755.9,1.6597285]
[1641058791429,0.69501229,3757.1,3755.9,0.00511582]
[1641058791629,0.69501229,3757.1,3756.0,0.00454739]
[1641058791828,0.69501229,3757.1,3755.8,1.98018088]
[1641058792029,0.69501229,3757.1,3755.9,0.30511582]
[1641058792234,0.69501229,3757.1,3756.0,2.0378899]
[1641058792455,1.38104697,3757.6,3756.8,1.3636493]
[1641058792661,1.38104697,3757.6,3756.8,1.9836493]
[1641058792855,1.38104697,3757.6,3756.9,0.3]
[1641058794058,1.74462006,3758.3,3756.9,6.72]
[1641058794359,1.73192941,3758.3,3756.9,8.72]
[1641058794557,1.73192941,3758.3,3756.9,9.72]
[1641058794762,1.73192941,3758.3,3756.9,10.4729]
[1641058795161,3.02541692,3758.3,3756.9,10.4729]
[1641058795559,3.02541692,3758.3,3757.6,1.00648908]
[1641058795759,3.02541692,3758.3,3757.6,0.32]
[1641058795958,0.00682108,3758.2,3757.6,0.62]
[1641058796214,0.00682108,3758.2,3757.8,0.3]
[1641058796417,0.00625266,3758.1,3757.6,0.92]
[1641058796815,0.00568424,3758.0,3757.0,0.32]
[1641058797016,0.00568424,3758.0,3756.5,0.37731248]
[1641058797216,0.00511581,3757.9,3756.5,0.32]
[1641058797421,0.00511581,3757.9,3756.6,0.00227369]
[1641058797621,0.00454739,3757.8,3756.6,1.70306938]
[1641058798021,0.00397897,3757.7,3756.7,0.00170527]
[1641058798220,1.06989475,3757.7,3757.0,1.21781706]
[1641058798420,0.00341054,3757.6,3757.0,1.21781706]
[1641058798626,0.00341054,3757.6,3757.0,1.81781706]
[1641058798822,0.00284212,3757.5,3757.0,1.81781706]
[1641058799025,0.00284212,3757.5,3757.0,0.6]
[1641058799224,0.0022737,3757.4,3756.7,0.00170527]
[1641058799623,0.00170527,3757.3,3756.7,0.00170527]
[1641058800065,0.00113685,3757.2,3756.7,0.00170527]
[1641058800262,0.00113685,3757.2,3756.8,0.32]
[1641058800563,0.00625266,3758.1,3756.9,1.77540823]
[1641058800761,0.00625266,3758.1,3757.0,0.32]
[1641058800963,0.00568424,3758.0,3757.1,3.32818645]
[1641058801161,0.00568424,3758.0,3757.9,5.80029072]
[1641058801363,1.73192941,3758.3,3757.9,6.10029072]
[1641058801563,1.73192941,3758.3,3757.9,7.40029072]
[1641058801760,0.00682108,3758.2,3758.0,1.0]
[1641058801961,0.00682108,3758.2,3758.1,6.42]
[1641058802163,1.73192941,3758.3,3758.1,6.42]
[1641058802164,1.73192941,3758.3,3758.1,7.42]
[1641058802361,1.73192941,3758.3,3758.1,8.02]
[1641058802571,1.73192941,3758.3,3758.2,1.0]
[1641058802767,1.73192941,3758.3,3758.2,1.32]
[1641058802966,1.73931892,3758.3,3758.2,0.32]
[1641058803167,1.73931892,3758.3,3758.2,2.32]
[1641058803369,1.73931892,3758.3,3758.2,4.3019]
[1641058803566,1.73931892,3758.3,3758.2,8.4019]
[1641058804003,1.73931892,3758.3,3758.2,2.3019]
[1641058804403,1.73931892,3758.3,3758.2,0.32]
[1641058804607,1.73931892,3758.3,3758.2,3.72]
[1641058804804,1.73931892,3758.3,3758.2,2.72]
[1641058805006,1.73931892,3758.3,3758.2,3.72]
[1641058805209,1.73931892,3758.3,3758.2,2.72]
[1641058805509,0.5867785,3758.8,3758.3,5.1]
[1641058805706,0.5867785,3758.8,3758.4,2.04583643]
[1641058805907,0.5867785,3758.8,3758.6,1.40821394]
[1641058806105,0.5867785,3758.8,3758.4,0.92]
[1641058806507,0.5867785,3758.8,3757.9,0.32]
[1641058806707,0.5867785,3758.8,3757.8,0.05730886]
[1641058806906,0.5867785,3758.8,3758.0,0.00170527]
[1641058807107,0.5867785,3758.8,3757.9,0.0022737]
[1641058807307,0.5867785,3758.8,3757.9,2.3222737]
[1641058807555,0.5867785,3758.8,3758.3,1.65924375]
[1641058807957,0.5867785,3758.8,3758.4,0.32]
[1641058808155,0.5867785,3758.8,3758.5,1.40908669]
[1641058808355,0.5867785,3758.8,3758.6,0.3]
[1641058809355,0.5867785,3758.8,3758.3,3.3629901]
[1641058809356,0.5867785,3758.8,3758.3,3.9629901]
[1641058809558,0.5867785,3758.8,3758.4,3.0]
[1641058809757,0.5867785,3758.8,3758.7,1.68624009]
[1641058810158,0.5867785,3758.8,3758.7,1.98624009]
[1641058810159,0.58962061,3758.8,3758.7,1.98624009]
[1641058810362,0.58962061,3758.8,3758.7,2.28624009]
[1641058810558,0.58962061,3758.8,3758.7,1.98624009]
[1641058810760,0.58962061,3758.8,3758.7,0.3]
[1641058811062,0.53962061,3758.8,3758.6,0.6]
[1641058811314,0.53962061,3758.8,3758.6,0.3]
[1641058811514,0.00227369,3758.7,3758.5,1.0]
[1641058811915,0.00170527,3758.6,3758.5,1.0]
[1641058812116,0.00170527,3758.6,3758.4,1.6387318]
[1641058812524,0.00113684,3758.5,3758.4,1.6387318]
[1641058812722,0.00113684,3758.5,3758.3,3.3629901]
[1641058813924,0.00113684,3758.5,3758.3,1.68812847]
[1641058815061,0.00113684,3758.5,3758.3,1.98812847]
[1641058815265,0.00113684,3758.5,3758.0,3.36469537]
[1641058815470,0.00113684,3758.5,3758.0,3.66469537]
[1641058815667,0.00113684,3758.5,3758.1,0.00113685]
[1641058815866,0.00113684,3758.5,3758.4,1.68788468]
[1641058816668,0.00113684,3758.5,3758.2,1.68788468]
[1641058817868,0.00113684,3758.5,3758.3,1.68788468]
[1641058818366,0.00113684,3758.5,3758.3,1.63788468]
[1641058818567,0.00113684,3758.5,3758.4,8.05788468]
[1641058818804,0.00113684,3758.5,3758.4,1.95788468]
[1641058819007,0.00113684,3758.5,3758.4,4.2829901]
[1641058819204,0.5367785,3758.8,3758.4,4.2829901]
[1641058819406,0.5367785,3758.8,3758.5,1.30728495]
[1641058819605,0.5367785,3758.8,3758.5,2.30728495]
[1641058819606,0.00113685,3758.7,3758.5,2.30728495]
[1641058820206,0.00113685,3758.7,3758.5,1.30728495]
[1641058820408,0.00113685,3758.7,3758.5,2.30728495]
[1641058820713,0.00113685,3758.7,3758.6,6.42]
[1641058820910,0.00245264,3758.7,3758.6,6.42]
[1641058821105,0.00245264,3758.7,3758.6,7.72]
[1641058821307,9.0,3759.1,3758.7,6.76495]
[1641058821509,9.0,3759.1,3758.8,1.1519556]
[1641058821710,0.00170527,3759.0,3758.8,2.1519556]
[1641058822009,9.0,3759.1,3758.9,0.3]
[1641058822208,9.0,3759.1,3759.0,6.42]
[1641058822458,0.11992,3760.0,3759.4,0.66482]
[1641058822663,0.11992,3760.0,3759.6,0.531811]
[1641058822864,0.11992,3760.0,3759.7,2.32]
[1641058822865,0.00682108,3759.9,3759.7,2.32]
[1641058823061,0.00682108,3759.9,3759.7,0.62]
[1641058823265,0.00625266,3759.8,3759.7,1.62]
[1641058823566,6.14323158,3760.0,3759.7,3.85316533]
[1641058823762,0.735438,3761.0,3759.7,3.85316533]
[1641058823963,0.735438,3761.0,3760.3,0.5316819]
[1641058824165,0.00625266,3760.9,3760.4,2.32]
[1641058824363,0.00625266,3760.9,3760.5,0.32]
[1641058824564,0.00568423,3760.8,3760.6,0.3]
[1641058824763,0.69112223,3761.0,3760.7,0.17]
[1641058825368,6.84112223,3761.0,3760.7,0.17]
[1641058825967,0.17,3760.7,3760.0,0.32]
[1641058826204,0.17,3760.7,3759.7,0.05730163]
[1641058826408,0.01250184,3760.3,3760.1,0.00397896]
[1641058826608,0.01250184,3760.3,3759.8,0.00568423]
[1641058826809,0.66513,3759.7,3759.1,1.83671559]
[1641058827110,1.24023421,3759.9,3759.2,0.00341054]
[1641058827308,0.01242459,3759.9,3759.2,0.00341054]
[1641058827811,1.9955184,3759.6,3759.2,0.00341054]
[1641058828212,1.9955384,3759.6,3759.2,0.00341054]
[1641058828410,2.6606984,3759.6,3759.2,0.00341054]
[1641058828712,1.16193486,3759.4,3759.2,0.00341054]
[1641058829109,2.49232806,3759.4,3759.2,0.00341054]
[1641058829812,1.82711806,3759.4,3759.2,0.00341054]
[1641058830068,0.66516,3759.6,3759.2,0.00341054]
[1641058830472,1.99541,3759.9,3759.2,0.00341054]
[1641058830872,0.66511,3759.7,3759.2,0.00341054]
[1641058831075,1.17224452,3759.9,3759.2,0.00341054]
[1641058831475,0.00129942,3759.6,3759.2,0.00341054]
[1641058832073,0.00129942,3759.6,3759.3,0.32]
[1641058832474,0.00129942,3759.6,3759.4,0.30227369]
[1641058832675,0.00129942,3759.6,3759.4,0.62227369]
[1641058832874,0.00129942,3759.6,3759.5,3.70170527]
[1641058833279,0.00129942,3759.6,3759.5,0.00170527]
[1641058834109,0.00129942,3759.6,3759.3,0.00284212]
[1641058835115,3.05,3759.5,3759.1,1.83671559]
[1641058835413,0.01398502,3759.5,3758.2,2.0]
[1641058835616,0.66521,3759.1,3758.2,2.0]
[1641058835812,1.34447502,3759.5,3758.3,0.00568423]
[1641058836012,0.01398502,3759.5,3758.3,0.00568423]
[1641058836215,0.01398502,3759.5,3758.1,2.0]
[1641058836216,0.01398502,3759.5,3758.1,2.00682108]
[1641058836418,0.01398502,3759.5,3758.2,0.00625266]
[1641058836613,0.66518,3759.3,3758.2,0.00625266]
[1641058836814,0.66518,3759.3,3758.0,0.3273895]
[1641058837012,1.00752857,3759.2,3758.1,2.0]
[1641058837212,1.00752857,3759.2,3758.1,2.30682108]
[1641058837458,1.00752857,3759.2,3758.2,0.00625266]
[1641058838064,1.00752857,3759.2,3758.2,1.00625266]
[1641058838262,1.00752857,3759.2,3758.3,2.0]
[1641058838462,1.00752857,3759.2,3758.2,0.00625266]
[1641058838661,1.00752857,3759.2,3758.4,0.00511581]
[1641058838862,1.00752857,3759.2,3758.2,1.73199804]
[1641058839068,0.01398502,3759.5,3758.2,2.03199804]
[1641058839264,0.01398502,3759.5,3758.2,2.33199804]
[1641058839465,0.01398502,3759.5,3758.2,3.33199804]
[1641058839964,0.01398502,3759.5,3758.8,1.20659475]
[1641058839965,0.00113685,3759.5,3758.8,1.20659475]
[1641058840168,0.00113685,3759.5,3758.9,2.16070027]
[1641058840363,0.00113685,3759.5,3758.9,2.76297396]
[1641058840564,0.00113685,3759.5,3759.0,1.00170527]
[1641058840765,0.00113685,3759.5,3759.1,1.99817836]
[1641058840963,0.00113685,3759.5,3759.1,2.29931521]
[1641058841219,0.64700942,3760.0,3759.1,0.87113685]
[1641058841419,0.64700942,3760.0,3759.2,0.00170527]
[1641058841620,0.00227369,3759.9,3759.2,0.00170527]
[1641058842015,1.32436871,3759.6,3759.1,0.0022737]
[1641058842524,0.00170527,3759.8,3759.1,0.0022737]
[1641058842921,0.00117269,3759.9,3759.2,0.32]
[1641058842922,0.00113685,3759.7,3759.2,0.32]
[1641058843423,0.00117269,3759.9,3759.3,2.00113685]
[1641058843424,0.00170527,3759.8,3759.3,2.00113685]
[1641058843623,0.00170527,3759.8,3759.4,0.32]
[1641058843823,0.00113685,3759.7,3759.4,0.62]
[1641058844226,0.00117269,3759.9,3759.4,0.62]
[1641058844227,0.00170527,3759.8,3759.4,0.62]
[1641058844624,0.00113685,3759.7,3759.4,2.30652223]
[1641058845054,0.00170527,3759.8,3759.4,2.30652223]
[1641058845259,1.29892374,3759.8,3759.4,0.32]
[1641058845456,0.00113685,3759.7,3759.4,0.32]
[1641058845956,0.00113685,3759.7,3759.4,1.97919487]
[1641058846560,0.00113685,3759.7,3759.4,0.32]
[1641058847162,0.00113685,3759.7,3759.6,1.68652223]
[1641058847762,0.00113685,3759.7,3759.3,0.00113685]
[1641058848361,0.00113685,3759.7,3759.3,1.68765908]
[1641058849218,0.00113685,3759.7,3759.6,1.68652223]
[1641058849417,0.00113685,3759.7,3759.6,2.28652223]
[1641058849613,0.00113685,3759.7,3759.6,0.6]
[1641058849815,0.00113685,3759.7,3759.6,0.3]
[1641058850017,3.685e-05,3759.7,3759.6,6.42]
[1641058850219,3.685e-05,3759.7,3759.6,8.42]
[1641058850415,0.17,3760.7,3759.6,8.42]
[1641058850416,0.17,3760.7,3759.7,6.76468]
[1641058850616,0.17,3760.7,3759.8,3.32]
[1641058850817,0.00511581,3760.6,3759.8,3.92]
[1641058851218,0.00454738,3760.5,3759.8,3.92]
[1641058851618,0.17,3760.7,3760.1,0.3]
[1641058851619,0.00397896,3760.4,3760.1,0.3]
[1641058851821,0.00397896,3760.4,3760.2,0.62]
[1641058852124,0.17,3760.7,3760.4,1.97092238]
[1641058852564,0.00626436,3760.6,3760.5,4.47696043]
[1641058852760,0.00626436,3760.6,3760.5,2.75]
[1641058853361,0.00626436,3760.6,3760.4,0.6]
[1641058853562,0.00626436,3760.6,3760.3,0.3]
[1641058853763,0.00454738,3760.5,3760.3,0.3]
[1641058853963,0.00454738,3760.5,3760.4,4.53785278]
[1641058854164,0.00114855,3760.6,3760.4,2.85]
[1641058854364,0.00114855,3760.6,3760.4,3.15]
[1641058854564,0.00114855,3760.6,3760.3,1.67092238]
[1641058855166,0.66611855,3760.6,3760.4,1.67092238]
[1641058855766,0.59527194,3760.6,3759.8,3.34184475]
[1641058855967,0.00114855,3760.6,3759.3,1.70895337]
[1641058856211,0.00114855,3760.6,3759.3,0.00113685]
[1641058856404,0.00114855,3760.6,3759.0,2.43357768]
[1641058856405,0.66611855,3760.6,3759.4,0.00170527]
[1641058856605,0.66611855,3760.6,3759.1,0.66835055]
[1641058856806,0.66611855,3760.6,3759.2,1.85433654]
[1641058857006,0.66611855,3760.6,3759.2,1.85717866]
[1641058857007,0.00114855,3760.6,3759.2,1.85717866]
[1641058857207,0.00114855,3760.6,3759.3,0.0022737]
[1641058857409,0.66498,3760.5,3759.3,0.0022737]
[1641058857611,0.00114855,3760.6,3759.2,2.80661024]
[1641058857810,0.00397896,3760.4,3759.2,1.0]
[1641058858310,0.00568424,3760.3,3759.1,1.26494]
[1641058858510,0.00568424,3760.3,3759.2,0.6149112]
[1641058858712,0.00511581,3760.2,3759.4,0.66489]
[1641058858913,0.00511581,3760.2,3759.4,1.28489]
[1641058859110,0.00454739,3760.1,3759.4,1.58489]
[1641058859310,0.00454739,3760.1,3759.4,0.92]
[1641058859612,0.00397897,3760.0,3759.4,0.62]
[1641058860061,0.00341054,3759.9,3759.4,0.92]
[1641058860462,0.00284212,3759.8,3759.5,2.514194]
[1641058860663,0.00284212,3759.8,3759.6,1.0]
[1641058860862,0.69427841,3760.4,3759.7,6.2390114]
[1641058861064,0.00114855,3760.6,3759.8,1.0]
[1641058861262,0.00568424,3760.3,3759.9,2.16034133]
[1641058861664,0.00511581,3760.2,3759.9,2.46034133]
[1641058861962,0.00454739,3760.1,3759.9,2.46034133]
[1641058862163,0.00454739,3760.1,3760.0,4.3665908]
[1641058862360,0.00114855,3760.6,3759.9,0.32]
[1641058862762,0.00397897,3760.0,3759.9,0.32]
[1641058862962,0.00397897,3760.0,3759.9,3.47]
[1641058863163,0.00397897,3760.0,3759.9,0.17]
[1641058864023,0.00397897,3760.0,3759.9,2.87]
[1641058864230,0.00397897,3760.0,3759.9,3.17]
[1641058864423,0.00397897,3760.0,3759.9,4.89131541]
[1641058864624,0.00397897,3760.0,3759.9,4.91807321]
[1641058865627,0.00397897,3760.0,3759.9,6.21807321]
[1641058865829,0.00114855,3760.6,3760.0,6.1]
[1641058866026,0.00114855,3760.6,3760.1,2.82721789]
[1641058866224,0.00284211,3760.5,3760.1,3.12721789]
[1641058866425,0.00284211,3760.5,3760.1,3.42721789]
[1641058866627,0.00227369,3760.4,3760.2,1.0]
[1641058866926,0.00114855,3760.6,3760.3,1.70920897]
[1641058867226,0.00284211,3760.5,3760.3,2.00920897]
[1641058867458,0.12399066,3760.7,3760.4,1.69339949]
[1641058867667,0.12399066,3760.7,3760.4,1.97618497]
[1641058868665,0.12399066,3760.7,3760.4,1.99384686]
[1641058870268,0.12399066,3760.7,3760.4,0.3]
[1641058870469,0.12399066,3760.7,3760.2,1.70843901]
[1641058870470,0.12399066,3760.7,3760.2,2.70294591]
[1641058870669,0.12399066,3760.7,3760.4,3.0]
[1641058870865,0.12399066,3760.7,3760.5,1.74952471]
[1641058871066,0.12399066,3760.7,3760.6,6.37]
[1641058871322,0.12399066,3760.7,3760.6,8.34683852]
[1641058871523,0.12512751,3760.7,3760.6,9.64683852]
[1641058871720,0.12512751,3760.7,3760.6,3.59683852]
[1641058873526,0.12616617,3760.7,3760.6,3.59683852]
[1641058874326,0.12616617,3760.7,3760.6,1.62]
[1641058874725,0.12616617,3760.7,3760.6,3.27446071]
[1641058874956,0.07616617,3760.7,3760.6,3.27446071]
[1641058875157,0.07616617,3760.7,3760.6,1.62]
[1641058875561,0.07616617,3760.7,3760.6,0.32]
[1641058876960,0.07616617,3760.7,3760.6,0.62]
[1641058877162,0.07616617,3760.7,3760.6,2.35213021]
[1641058877566,0.07616617,3760.7,3760.6,2.60213021]
[1641058877968,0.07616617,3760.7,3760.6,3.60213021]
[1641058879006,0.07616617,3760.7,3760.6,0.32]
[1641058879207,0.07616617,3760.7,3760.4,2.7]
[1641058880006,1.19882879,3760.7,3760.4,2.7]
[1641058880708,1.19882879,3760.7,3760.4,2.65]
[1641058881115,1.86375879,3760.7,3760.4,2.65]
[1641058882676,3.19377359,3760.7,3760.4,2.65]
[1641058882876,3.19377359,3760.7,3760.5,0.01051756]
[1641058883482,3.19375879,3760.7,3760.5,0.01051756]
[1641058884480,2.52871879,3760.7,3760.5,0.01051756]
[1641058884679,1.19882879,3760.7,3760.4,2.61051756]
[1641058885181,0.07616617,3760.7,3760.4,2.91051756]
[1641058885382,0.07616617,3760.7,3760.5,1.67063583]
[1641058885579,0.07616617,3760.7,3760.4,2.91051756]
[1641058885780,0.07616617,3760.7,3760.5,1.65774272]
[1641058885982,0.07616617,3760.7,3760.5,1.66886064]
[1641058886224,0.07616617,3760.7,3760.6,6.69988301]
[1641058886416,0.07616617,3760.7,3760.6,7.01988301]
[1641058886616,0.07616617,3760.7,3760.6,8.31988301]
[1641058887016,0.07616617,3760.7,3760.6,7.99988301]
[1641058887415,0.07616617,3760.7,3760.6,8.38288301]
[1641058887637,0.07616617,3760.7,3760.6,4.09756301]
[1641058887821,0.07616617,3760.7,3760.6,2.34768]
[1641058888019,0.07616617,3760.7,3760.6,4.05358318]
[1641058892171,0.07616617,3760.7,3760.6,2.08890318]
[1641058893372,0.07616617,3760.7,3760.6,2.38890318]
[1641058893572,0.07616617,3760.7,3760.6,3.68890318]
[1641058894221,0.07616617,3760.7,3760.6,1.983]
[1641058894422,0.07616617,3760.7,3760.6,3.69477026]
[1641058895722,0.07616617,3760.7,3760.6,1.983]
[1641058896523,0.07616617,3760.7,3760.6,0.983]
[1641058896724,0.07616617,3760.7,3760.4,2.61051756]
[1641058896925,1.03218153,3760.6,3760.4,2.61051756]
[1641058897125,0.07616617,3760.7,3760.4,2.61051756]
[1641058898280,0.07616617,3760.7,3759.3,4.92639]
[1641058898281,1.47191227,3760.3,3759.6,1.73936418]
[1641058898479,1.47191227,3760.3,3759.3,4.54339]
[1641058898678,1.47191227,3760.3,3759.7,0.00341054]
[1641058898881,0.66502,3760.1,3759.7,0.00341054]
[1641058899079,0.66502,3760.1,3759.4,2.0]
[1641058899080,0.66503,3760.0,3759.5,0.00454739]
[1641058899279,1.09507105,3759.9,3759.5,0.00454739]
[1641058899680,1.09507105,3759.9,3759.3,0.00568424]
[1641058899880,1.47191227,3760.3,3759.3,0.00568424]
[1641058900579,1.47191227,3760.3,3759.5,2.7]
[1641058900780,1.47191227,3760.3,3759.5,3.0]
[1641058900980,1.47191227,3760.3,3759.6,1.68285158]
[1641058901420,1.34659454,3759.8,3759.6,0.00397897]
[1641058902012,2.04105283,3759.8,3759.6,0.00397897]
[1641058902818,2.70614283,3759.8,3759.6,0.00397897]
[1641058903017,2.70614283,3759.8,3759.6,2.00397897]
[1641058903217,0.69445829,3759.8,3759.6,2.00397897]
[1641058903416,0.69445829,3759.8,3759.6,0.00397897]
[1641058905067,0.00092666,3759.7,3759.6,0.00397897]
[1641058905869,0.00092666,3759.7,3759.6,1.66778686]
[1641058906070,0.00092666,3759.7,3759.6,1.96778686]
[1641058906268,0.00092666,3759.7,3759.6,3.35078686]
[1641058906469,0.00092666,3759.7,3759.6,8.00078686]
[1641058906869,0.00092666,3759.7,3759.6,3.35078686]
[1641058907071,0.00092666,3759.7,3759.6,1.30397897]
[1641058907268,1.11535032,3760.2,3759.6,1.30397897]
[1641058907469,1.11535032,3760.2,3759.6,0.00397897]
[1641058908271,1.78038032,3760.2,3759.6,0.00397897]
[1641058908914,0.66514,3759.9,3759.6,0.00397897]
[1641058909318,0.66514,3759.8,3759.6,0.00397897]
[1641058909518,0.77154,3759.8,3759.6,0.00397897]
[1641058909718,5.1008,3759.7,3759.6,0.00397897]
[1641058909921,5.0,3759.7,3759.6,0.00397897]
[1641058911324,0.69453385,3759.7,3759.6,0.00397897]
[1641058914776,0.69453385,3759.7,3759.6,2.00397897]
[1641058914978,2.80212087,3760.3,3759.7,6.1]
[1641058914979,0.77793617,3760.3,3759.7,6.1]
[1641058915179,0.77793617,3760.3,3759.9,0.01208246]
[1641058915577,0.00085903,3760.2,3760.0,0.00170527]
[1641058915983,0.00085903,3760.2,3760.1,6.76471]
[1641058916232,0.00170527,3760.6,3760.3,0.77793617]
[1641058916433,0.00170527,3760.6,3760.5,10.89]
[1641058916634,3.1871,3762.2,3760.6,6.1]
[1641058916839,3.1871,3762.2,3760.8,0.6645849]
[1641058917036,3.1871,3762.2,3760.9,5.133]
[1641058917235,30.64112223,3761.0,3760.9,0.683]
[1641058917434,30.59510119,3761.0,3760.9,0.383]
[1641058917837,30.59510119,3761.0,3760.4,5.54339]
[1641058917838,30.59510119,3761.0,3760.4,4.54339]
[1641058918233,0.00341054,3760.9,3760.4,4.54339]
[1641058918433,0.66836054,3760.9,3760.4,4.54339]
[1641058918637,0.00284211,3760.8,3760.4,4.54339]
[1641058918838,0.00284211,3760.8,3760.3,0.77793617]
[1641058919037,0.00227369,3760.7,3760.3,0.77793617]
[1641058919438,0.00170527,3760.6,3760.3,0.77793617]
[1641058919838,0.00113684,3760.5,3760.3,0.77793617]
[1641058920280,31.65216732,3761.0,3760.3,0.77793617]
[1641058920281,0.00341054,3760.9,3760.3,0.77793617]
[1641058920477,1.33331054,3760.9,3760.3,0.77793617]
[1641058920683,0.00284211,3760.8,3760.3,0.77793617]
[1641058921084,31.65216732,3761.0,3760.3,0.77793617]
[1641058921085,0.00227369,3760.7,3760.3,0.77793617]
[1641058921486,31.65216732,3761.0,3760.3,0.77793617]
[1641058921487,0.00170527,3760.6,3760.3,0.77793617]
[1641058921684,1.34298502,3760.4,3760.3,0.77793617]
[1641058921883,31.65216732,3761.0,3760.3,0.77793617]
[1641058921884,0.00113684,3760.5,3760.3,0.77793617]
[1641058922084,0.00113684,3760.5,3760.3,3.47793617]
[1641058922290,1.9949844,3760.9,3760.3,3.47793617]
[1641058922291,0.00341054,3760.9,3760.3,3.47793617]
[1641058922685,0.00284211,3760.8,3760.3,3.47793617]
[1641058922884,0.00284211,3760.8,3760.4,1.67111111]
[1641058923088,0.00227369,3760.7,3760.4,1.75980737]
[1641058923488,0.00170527,3760.6,3760.4,1.75980737]
[1641058923727,0.00170527,3760.6,3760.5,5.283]
[1641058923928,30.59112223,3761.0,3760.5,5.583]
[1641058924330,0.00341054,3760.9,3760.5,6.24772]
[1641058924734,0.00284211,3760.8,3760.5,6.24772]
[1641058925136,0.00227369,3760.7,3760.5,6.24772]
[1641058925538,0.00170527,3760.6,3760.5,6.24772]
[1641058925738,0.00170527,3760.6,3760.5,6.91246]
[1641058925941,0.00253962,3760.6,3760.5,8.6260114]
[1641058926540,0.00253962,3760.6,3760.5,9.9260114]
[1641058926939,30.59112223,3761.0,3760.5,5.0260114]
[1641058927245,0.00170527,3760.9,3760.7,0.82934]
[1641058927468,0.00170527,3760.9,3760.8,1.68608978]
[1641058927673,30.59112223,3761.0,3760.8,3.06908978]
[1641058927869,30.59112223,3761.0,3760.8,3.36908978]
[1641058928073,30.59112223,3761.0,3760.9,1.67488584]
[1641058928272,30.59112223,3761.0,3760.9,5.75354263]
[1641058928472,30.59339592,3761.0,3760.9,6.05354263]
[1641058928671,30.59339592,3761.0,3760.9,5.04759]
[1641058928972,28.08852456,3761.0,3760.9,15.23759]
[1641058929170,28.08852456,3761.0,3760.9,13.12423422]
[1641058929373,28.08852456,3761.0,3760.9,11.12423422]
[1641058929572,28.08852456,3761.0,3760.9,9.83759]
[1641058929977,27.02332377,3761.0,3760.9,13.23759]
[1641058930187,10.62263726,3761.0,3760.9,25.52759]
[1641058930374,5.30705726,3761.0,3760.9,25.54054039]
[1641058930573,5.30705726,3761.0,3760.9,26.46604039]
[1641058931074,0.05747179,3762.7,3761.7,1.9933441]
[1641058931319,0.05747179,3762.7,3762.0,0.66446]
[1641058931522,0.00909478,3762.6,3762.1,0.383]
[1641058931921,0.00852635,3762.5,3762.1,0.383]
[1641058932323,0.00795793,3762.4,3762.1,0.383]
[1641058932537,1.03719052,3762.4,3762.1,0.383]
[1641058932725,0.93719052,3762.4,3762.1,0.383]
[1641058932923,0.93719052,3762.4,3762.2,0.00113685]
[1641058933125,0.05747179,3762.7,3762.2,0.00113685]
[1641058933323,8.12866,3763.7,3762.2,0.00113685]
[1641058933524,0.00113685,3762.6,3761.9,0.00284212]
[1641058934126,0.00113685,3762.6,3761.6,0.00454739]
[1641058934326,0.00113685,3762.6,3761.5,0.00511581]
[1641058934725,1.28928361,3762.6,3761.5,0.00511581]
[1641058934981,1.28928361,3762.6,3761.6,0.383]
[1641058934982,0.00113685,3762.6,3761.6,0.383]
[1641058935184,0.00113685,3762.6,3761.6,0.683]
[1641058935381,0.00113685,3762.6,3761.7,0.00397897]
[1641058935582,0.00113685,3762.6,3761.8,0.383]
[1641058935781,0.00113685,3762.6,3761.8,0.683]
[1641058935987,0.00113685,3762.6,3761.9,0.00284212]
[1641058936792,0.00113685,3762.6,3762.0,1.0474727]
[1641058936989,0.00113685,3762.6,3762.0,0.383]
[1641058937187,0.00113685,3762.6,3762.1,0.00170527]
[1641058937388,0.00113685,3762.6,3762.2,0.383]
[1641058937587,0.00113685,3762.6,3762.2,0.683]
[1641058937588,0.00093595,3762.5,3762.2,0.683]